bitfinex-derivatives/quotes_ETHF0:USTF0_20250904
["timestamp","ask_amount","ask_price","bid_price","bid_amount"]
[1756982796283,0.40643,4427.4,4427.3,2.69447727]
[1756982796591,0.40643,4427.4,4427.3,2.92347727]
[1756982796785,0.61783,4427.4,4427.3,2.92347727]
[1756982797888,1.16133,4427.4,4427.3,2.92347727]
[1756982798282,1.16133,4427.4,4427.3,0.9688]
[1756982798482,0.96967,4427.0,4426.9,3.7294]
[1756982798683,0.96967,4427.0,4426.9,0.442]
[1756982798684,1.29297,4427.0,4426.9,0.442]
[1756982799685,1.29297,4427.0,4426.9,0.7506]
[1756982800689,1.29297,4427.0,4426.9,0.442]
[1756982800990,1.29297,4427.0,4426.9,0.229]
[1756982801195,1.16137,4427.0,4426.9,0.9688]
[1756982801587,0.83807,4427.0,4426.9,0.9688]
[1756982801988,1.16137,4427.0,4426.9,0.9688]
[1756982802789,1.16137,4427.0,4426.9,4.1766]
[1756982808089,0.61787,4427.0,4426.9,4.1766]
[1756982809298,0.93717,4427.0,4426.9,4.1766]
[1756982810297,1.15427,4427.0,4426.9,4.1766]
[1756982814086,1.28237,4427.0,4426.9,3.4208]
[1756982814294,0.2048,4426.7,4426.6,0.4251]
[1756982814492,0.7412,4426.7,4426.6,0.6541]
[1756982814790,1.1477,4426.7,4426.6,0.6541]
[1756982814996,1.1477,4426.7,4426.6,0.9786]
[1756982818003,1.1477,4426.7,4426.6,0.4326]
[1756982818503,1.1477,4426.7,4426.6,2.93327727]
[1756982820612,0.4065,4426.7,4426.6,2.93327727]
[1756982824414,3.2078,4428.2,4426.6,6.60877727]
[1756982824616,0.3193,4428.4,4428.1,5.21467727]
[1756982824918,1.14756,4428.2,4428.1,0.0261]
[1756982825221,0.93051,4427.7,4427.6,3.26]
[1756982825806,0.93051,4427.7,4427.6,3.49]
[1756982827212,1.14761,4427.7,4427.6,5.44467727]
[1756982829421,1.14761,4427.7,4427.6,3.26]
[1756982829615,1.14761,4427.7,4427.6,5.44467727]
[1756982829817,0.40641,4427.7,4427.6,5.46097727]
[1756982832519,0.37691,4427.7,4427.6,5.46097727]
[1756982834016,0.40639,4427.9,4427.6,5.44467727]
[1756982834218,0.40639,4427.9,4427.8,1.95467727]
[1756982834411,0.71879,4427.9,4427.8,2.18467727]
[1756982835222,0.40639,4427.9,4427.8,2.18467727]
[1756982836323,0.71879,4427.9,4427.8,2.18467727]
[1756982837224,0.91619,4427.9,4427.8,2.18467727]
[1756982840140,1.12949,4427.9,4427.8,0.23]
[1756982840319,1.12949,4427.9,4427.8,2.18467727]
[1756982840921,0.71879,4427.9,4427.8,2.18467727]
[1756982842225,0.91619,4427.9,4427.8,2.18467727]
[1756982843231,1.12949,4427.9,4427.8,2.18467727]
[1756982845030,0.5098,4427.9,4427.8,2.18467727]
[1756982845331,0.40634,4428.4,4428.3,0.736]
[1756982845529,0.40634,4428.4,4428.3,6.12847727]
[1756982845728,1.01573,4429.0,4428.8,0.4368]
[1756982846037,0.5763,4428.9,4428.8,6.12847727]
[1756982847223,0.5763,4428.9,4428.8,4.1738]
[1756982847428,0.8887,4428.9,4428.8,6.12847727]
[1756982847633,0.5763,4428.9,4428.8,6.12847727]
[1756982848836,1.0861,4428.9,4428.8,6.12847727]
[1756982849429,1.2994,4428.9,4428.8,6.12847727]
[1756982849635,1.2994,4428.9,4428.8,2.92067727]
[1756982850031,1.2994,4428.9,4428.8,0.6668]
[1756982850225,1.2994,4428.9,4428.8,2.40317727]
[1756982851833,1.2994,4428.9,4428.8,2.62147727]
[1756982852034,1.2994,4428.9,4428.8,2.92067727]
[1756982852539,0.5763,4428.9,4428.8,2.92067727]
[1756982853536,1.2994,4428.9,4428.8,2.67851315]
[1756982854233,1.2994,4428.9,4428.8,2.37931315]
[1756982856640,0.40632,4428.6,4428.5,0.2992]
[1756982856839,1.12942,4428.6,4428.5,2.16001315]
[1756982857338,1.12942,4428.6,4428.5,2.37831315]
[1756982857535,1.12942,4428.6,4428.5,1.71251315]
[1756982857738,1.12942,4428.6,4427.5,0.0599]
[1756982857739,1.12949,4427.9,4427.8,3.6446]
[1756982857935,1.12953,4427.4,4427.3,31.177]
[1756982858243,1.12953,4427.4,4427.3,33.41771315]
[1756982859243,1.12953,4427.4,4427.3,33.11851315]
[1756982860932,1.12953,4427.4,4427.3,0.229]
[1756982861138,5.12953,4427.4,4427.3,0.229]
[1756982862946,1.12953,4427.4,4427.3,0.229]
[1756982864345,1.12953,4427.4,4427.3,0.4358]
[1756982865247,1.12953,4427.4,4427.3,0.6514]
[1756982865447,1.12953,4427.4,4427.3,0.9807]
[1756982865647,0.40643,4427.4,4427.3,0.9807]
[1756982865847,0.94103,4427.4,4427.3,0.9807]
[1756982866547,0.40643,4427.4,4427.3,0.9807]
[1756982867243,0.94103,4427.4,4427.3,0.9807]
[1756982867949,0.40643,4427.4,4427.3,0.9807]
[1756982868142,0.94103,4427.4,4427.3,0.9807]
[1756982868647,0.94103,4427.4,4427.3,2.69321315]
[1756982868843,1.15023,4427.4,4427.3,2.69321315]
[1756982872839,1.15023,4427.4,4427.3,2.36391315]
[1756982873452,1.15023,4427.4,4427.3,2.69321315]
[1756982874045,1.15023,4427.4,4427.3,2.36391315]
[1756982874242,1.15023,4427.4,4426.9,0.3293]
[1756982874243,1.27207,4427.0,4426.9,0.4224]
[1756982874448,1.27207,4427.0,4426.9,2.36391315]
[1756982875142,1.27207,4427.0,4426.9,2.14831315]
[1756982875347,1.27207,4427.0,4426.9,2.36391315]
[1756982876047,1.27207,4427.0,4426.9,2.69321315]
[1756982878761,1.15027,4427.0,4426.9,2.69321315]
[1756982879166,0.72577,4427.0,4426.9,2.69321315]
[1756982880067,0.40647,4427.0,4426.9,2.69321315]
[1756982880369,0.72577,4427.0,4426.9,2.69321315]
[1756982880574,0.94107,4427.0,4426.9,2.69321315]
[1756982887373,0.40647,4427.0,4426.9,2.69321315]
[1756982892284,1.0161,4427.4,4426.9,2.69321315]
[1756982892477,0.40641,4427.7,4427.6,0.7349]
[1756982892784,0.40641,4427.7,4427.6,2.67641315]
[1756982897188,0.40641,4427.7,4427.6,0.9639]
[1756982897379,0.94831,4427.7,4427.6,2.67641315]
[1756982899195,0.72901,4427.7,4427.6,2.67641315]
[1756982899893,0.94831,4427.7,4427.6,2.67641315]
[1756982900897,1.16521,4427.7,4427.6,2.67641315]
[1756982901891,0.94831,4427.7,4427.6,2.67641315]
[1756982902090,0.40641,4427.7,4427.6,2.67641315]
[1756982903293,0.72901,4427.7,4427.6,2.67641315]
[1756982904397,0.40641,4427.7,4427.6,2.67641315]
[1756982910500,0.40641,4427.7,4427.6,4.3889263]
[1756982911409,0.40641,4427.7,4427.6,2.67641315]
[1756982912207,0.40641,4427.7,4427.6,4.3889263]
[1756982912410,0.40641,4427.7,4427.6,2.67641315]
[1756982913602,0.40641,4427.7,4427.6,2.91686078]
[1756982914009,0.3226,4428.3,4427.6,2.91686078]
[1756982914010,0.4064,4427.9,4427.6,2.58856078]
[1756982914303,0.4064,4427.9,4427.8,5.89566078]
[1756982914504,0.4064,4427.9,4427.8,6.12466078]
[1756982915102,0.40638,4428.0,4427.9,0.3283]
[1756982915309,0.40638,4428.0,4427.9,2.68786078]
[1756982920805,0.72898,4428.0,4427.9,2.68786078]
[1756982922605,0.94828,4428.0,4427.9,2.68786078]
[1756982923309,1.28898,4428.0,4427.9,2.15756078]
[1756982923511,1.28898,4428.0,4427.9,2.67756078]
[1756982924906,1.28898,4428.0,4427.9,2.15756078]
[1756982925398,1.28898,4428.0,4427.9,2.67756078]
[1756982929009,1.12759,4427.9,4427.8,3.2078]
[1756982929210,1.12759,4427.9,4427.8,6.11046078]
[1756982929513,0.91489,4427.9,4427.8,6.11046078]
[1756982929815,0.40639,4427.9,4427.8,6.11046078]
[1756982935617,0.70709,4427.9,4427.8,6.11046078]
[1756982935819,1.12759,4427.9,4427.8,5.79636078]
[1756982936121,1.12759,4427.9,4427.8,6.11046078]
[1756982939622,0.70709,4427.9,4427.8,6.11046078]
[1756982940221,0.91489,4427.9,4427.8,6.11046078]
[1756982940523,0.70709,4427.9,4427.8,6.11046078]
[1756982940724,0.40639,4427.9,4427.8,6.11046078]
[1756982941712,0.40639,4427.9,4427.8,8.14468431]
[1756982943319,0.40639,4427.9,4427.8,6.19172353]
[1756982943626,0.51927,4428.1,4428.0,0.4397]
[1756982943826,0.40637,4428.1,4428.0,1.0753]
[1756982947831,0.91487,4428.1,4428.0,0.9497]
[1756982948031,1.12757,4428.1,4428.0,0.9497]
[1756982949130,1.12757,4428.1,4428.0,0.4297]
[1756982949333,1.12757,4428.1,4428.0,0.229]
[1756982949631,1.12757,4428.1,4428.0,0.4297]
[1756982950534,1.12757,4428.1,4428.0,0.6356]
[1756982950734,1.12757,4428.1,4428.0,0.9497]
[1756982950934,1.12757,4428.1,4428.0,0.6356]
[1756982954130,1.12757,4428.1,4428.0,0.229]
[1756982955636,1.12757,4428.1,4428.0,0.4323]
[1756982955836,1.12757,4428.1,4428.0,0.229]
[1756982958335,1.12757,4428.1,4428.0,0.4323]
[1756982958735,1.12757,4428.1,4428.0,0.229]
[1756982958930,0.4205,4428.1,4427.8,3.2078]
[1756982959134,1.11209,4427.9,4427.8,3.2078]
[1756982959436,1.11209,4427.9,4427.8,3.4368]
[1756982959837,1.11209,4427.9,4427.8,3.6401]
[1756982963237,0.71359,4427.9,4427.8,4.1446]
[1756982963438,1.11209,4427.9,4427.8,4.1446]
[1756982967649,0.90809,4427.9,4427.8,4.1446]
[1756982968240,0.40639,4427.9,4427.8,4.1446]
[1756982968638,0.1129,4428.1,4427.8,4.1446]
[1756982968841,0.1129,4428.1,4428.0,1.95296078]
[1756982969046,0.40636,4428.3,4428.0,4.21618431]
[1756982969245,0.71356,4428.3,4428.2,1.95296078]
[1756982969446,0.71356,4428.3,4428.2,2.18196078]
[1756982969848,0.3072,4428.3,4428.2,2.18196078]
[1756982970146,0.90796,4429.3,4429.2,0.3894]
[1756982970346,1.11196,4429.3,4429.2,3.4368]
[1756982974255,1.11196,4429.3,4429.2,3.4509]
[1756982974451,1.11196,4429.3,4429.2,5.40386078]
[1756982975556,1.11196,4429.3,4429.2,5.16341088]
[1756982976853,1.11196,4429.3,4429.2,5.17751088]
[1756982978258,0.71346,4429.3,4429.2,5.18631088]
[1756982978552,0.90796,4429.3,4429.2,5.17751088]
[1756982978756,0.90796,4429.3,4429.2,5.18631088]
[1756982978757,0.71346,4429.3,4429.2,5.18631088]
[1756982981757,0.90796,4429.3,4429.2,5.17751088]
[1756982982256,1.11196,4429.3,4429.2,3.4509]
[1756982982558,1.11196,4429.3,4429.2,5.16341088]
[1756982983355,1.11196,4429.3,4429.2,5.14931088]
[1756982987359,1.11196,4429.3,4429.2,5.16051088]
[1756982989555,1.11196,4429.3,4429.2,5.17171088]
[1756982989761,0.90796,4429.3,4429.2,5.17171088]
[1756982991063,1.11006,4429.3,4429.2,5.17171088]
[1756982994662,1.11006,4429.3,4429.2,3.4592]
[1756982994966,0.71346,4429.3,4429.2,5.17871088]
[1756982995164,0.40626,4429.3,4429.2,11.11699175]
[1756982995465,0.39924,4429.6,4429.5,0.0224]
[1756982995657,0.39924,4429.6,4429.5,1.96391088]
[1756982995853,0.70994,4429.6,4429.5,1.96391088]
[1756982996454,0.39924,4429.6,4429.5,1.96391088]
[1756982996860,0.70994,4429.6,4429.5,1.96391088]
[1756982999167,0.39924,4429.6,4429.5,3.67642176]
[1756983003073,0.70994,4429.6,4429.5,3.67642176]
[1756983003267,0.70994,4429.6,4429.5,1.96391088]
[1756983004379,1.11434,4429.6,4429.5,1.96391088]
[1756983005776,1.12136,4429.3,4429.2,3.2078]
[1756983006069,1.12136,4429.3,4429.2,3.4368]
[1756983006969,1.12136,4429.3,4429.2,5.14931088]
[1756983007168,1.12136,4429.3,4429.2,3.4368]
[1756983007364,1.12136,4429.3,4429.2,5.14931088]
[1756983009969,1.12136,4429.3,4429.2,1.94151088]
[1756983010174,1.12136,4429.3,4429.2,5.14931088]
[1756983011483,1.12136,4429.3,4429.2,3.4368]
[1756983011682,1.12136,4429.3,4429.2,5.14931088]
[1756983014985,1.12136,4429.3,4429.2,1.94151088]
[1756983016080,0.71696,4429.3,4429.2,1.94151088]
[1756983017081,0.91876,4429.3,4429.2,1.94151088]
[1756983017674,1.12296,4429.3,4429.2,1.94151088]
[1756983019487,0.91876,4429.3,4429.2,1.94151088]
[1756983021087,0.71696,4429.3,4429.2,1.94151088]
[1756983022789,0.40626,4429.3,4429.2,5.14931088]
[1756983027688,0.2844,4430.2,4429.2,11.08759175]
[1756983027993,0.40618,4430.2,4430.1,4.92031088]
[1756983028195,0.69058,4430.2,4430.1,5.14931088]
[1756983029998,1.09658,4430.2,4430.1,3.2078]
[1756983030199,1.09658,4430.2,4430.1,0.229]
[1756983030598,0.89238,4430.2,4430.1,0.229]
[1756983030800,1.09658,4430.2,4430.1,0.229]
[1756983031897,1.09658,4430.2,4430.1,1.94151088]
[1756983032399,1.09658,4430.2,4430.1,0.229]
[1756983035302,0.2844,4430.4,4430.1,0.229]
[1756983035606,0.2844,4430.4,4430.3,1.71251088]
[1756983037300,0.73006,4430.5,4430.3,1.71251088]
[1756983037506,0.73006,4430.5,4430.4,2.1809406]
[1756983037507,1.01446,4430.5,4430.4,2.1809406]
[1756983042406,0.2844,4430.5,4430.4,2.1809406]
[1756983042597,0.69055,4430.5,4430.4,2.1809406]
[1756983042801,0.81195,4430.5,4430.4,2.1809406]
[1756983044015,1.01925,4430.5,4430.4,0.23]
[1756983044311,1.01925,4430.5,4430.4,2.1809406]
[1756983045203,0.81195,4430.5,4430.4,2.1809406]
[1756983045900,0.40615,4430.5,4430.4,2.1809406]
[1756983046602,0.69015,4430.5,4430.4,2.1809406]
[1756983047206,0.40615,4430.5,4430.4,2.1809406]
[1756983047412,0.3981,4431.0,4430.4,2.1809406]
[1756983047599,0.80421,4431.0,4430.9,5.1587406]
[1756983047805,0.80421,4431.0,4430.9,3.4378]
[1756983048001,0.80421,4431.0,4430.9,5.3887406]
[1756983048419,1.01151,4431.0,4430.9,5.3887406]
[1756983049010,1.20681,4431.0,4430.9,5.3887406]
[1756983050416,1.01151,4431.0,4430.9,5.3887406]
[1756983051719,0.80421,4431.0,4430.9,5.3887406]
[1756983051918,1.01151,4431.0,4430.9,5.3887406]
[1756983053416,1.01151,4431.0,4430.9,3.4378]
[1756983053613,1.01151,4431.0,4430.9,5.3887406]
[1756983053813,1.20681,4431.0,4430.9,5.3887406]
[1756983055220,1.01151,4431.0,4430.9,5.3887406]
[1756983055419,0.40611,4431.0,4430.9,5.3887406]
[1756983055717,1.01881,4431.0,4430.9,5.3887406]
[1756983058926,1.21411,4431.0,4430.9,5.3887406]
[1756983059116,1.21411,4431.0,4430.9,5.1587406]
[1756983059421,1.21411,4431.0,4430.9,5.3877406]
[1756983061416,1.01881,4431.0,4430.9,5.3877406]
[1756983062617,0.81151,4431.0,4430.9,5.3877406]
[1756983062816,1.01881,4431.0,4430.9,5.3877406]
[1756983063018,1.21411,4431.0,4430.9,5.3877406]
[1756983063912,1.01881,4431.0,4430.9,5.3877406]
[1756983064116,0.81151,4431.0,4430.9,5.3877406]
[1756983064719,1.01881,4431.0,4430.9,5.3877406]
[1756983064920,0.81151,4431.0,4430.9,5.3877406]
[1756983065816,3.2078,4431.7,4430.9,10.6287206]
[1756983066021,0.4054,4433.0,4431.6,7.1096812]
[1756983066218,0.40587,4433.7,4432.8,3.2078]
[1756983066534,1.09246,4433.7,4433.6,3.2078]
[1756983066824,1.09246,4433.7,4433.6,2.4603815]
[1756983067221,1.09246,4433.7,4433.6,0.2784409]
[1756983067523,5.09246,4433.7,4433.6,0.5094409]
[1756983067723,1.09246,4433.7,4433.6,2.4603815]
[1756983069120,3.3292,4434.0,4433.6,0.27771828]
[1756983069320,0.4054,4434.0,4433.9,5.1587406]
[1756983069622,0.40583,4434.1,4433.9,5.66945888]
[1756983069830,0.1214,4434.5,4434.0,0.27771828]
[1756983070121,0.68978,4434.6,4434.2,1.9509406]
[1756983070326,0.6898,4434.4,4434.3,0.51071828]
[1756983070522,0.284,4434.4,4434.3,3.71851828]
[1756983070718,0.5272,4434.5,4434.3,3.71851828]
[1756983070919,0.68977,4434.7,4434.4,0.27771828]
[1756983071224,0.284,4434.7,4434.5,0.51071828]
[1756983071419,0.68978,4434.7,4434.6,2.46165888]
[1756983072516,1.10028,4434.7,4434.6,2.46165888]
[1756983073527,1.10028,4434.7,4434.6,0.233]
[1756983075617,0.2891,4434.6,4434.3,2.8912]
[1756983075823,0.80626,4432.6,4432.5,0.2068]
[1756983076031,0.80626,4432.6,4432.0,0.5309]
[1756983076032,0.60311,4432.1,4432.0,0.5309]
[1756983076224,0.60311,4432.1,4432.0,0.7659]
[1756983076827,0.40601,4432.1,4432.0,0.7659]
[1756983077034,0.40601,4432.1,4432.0,1.04235966]
[1756983077529,0.60311,4432.1,4432.0,1.04235966]
[1756983077722,0.40601,4432.1,4432.0,0.7659]
[1756983077927,0.40601,4432.1,4432.0,1.0553]
[1756983079436,0.40599,4432.3,4432.0,1.0553]
[1756983079624,0.40599,4432.3,4432.2,5.8614406]
[1756983079826,0.40599,4432.3,4432.2,6.0964406]
[1756983083748,0.60309,4432.3,4432.2,5.8614406]
[1756983083943,0.80629,4432.3,4432.2,6.0964406]
[1756983084143,0.80629,4432.3,4432.2,3.4972]
[1756983084452,5.09539,4432.3,4432.2,3.4428]
[1756983085046,5.09539,4432.3,4432.2,0.235]
[1756983085541,5.09539,4432.3,4432.2,0.5244]
[1756983085850,5.09539,4432.3,4432.2,0.7312]
[1756983087845,0.80629,4432.3,4432.2,2.8886406]
[1756983088849,0.40599,4432.3,4432.2,2.8886406]
[1756983092457,0.60309,4432.3,4432.2,0.9377]
[1756983094248,1.09539,4432.3,4432.2,0.5234]
[1756983094755,1.09539,4432.3,4432.2,0.7302]
[1756983095054,1.09539,4432.3,4432.2,0.234]
[1756983096049,1.09539,4432.3,4432.2,0.5234]
[1756983096243,1.09539,4432.3,4432.2,0.234]
[1756983097152,0.80633,4431.8,4431.7,0.2894]
[1756983097455,1.09543,4431.8,4431.7,0.5234]
[1756983097655,1.09543,4431.8,4431.7,0.7302]
[1756983097858,1.09543,4431.8,4431.7,0.234]
[1756983098053,1.71085842,4432.2,4431.7,0.234]
[1756983098257,1.71085842,4431.9,4431.7,0.234]
[1756983098454,0.40606,4431.6,4431.5,31.2496]
[1756983098752,0.40606,4431.6,4430.0,0.1176]
[1756983098753,0.4061,4431.1,4430.8,0.2894]
[1756983098951,1.71085842,4431.1,4431.0,0.234]
[1756983099254,0.40618,4430.3,4430.2,34.3438]
[1756983099554,0.40618,4430.3,4430.2,31.37]
[1756983099754,0.40618,4430.3,4430.2,33.08085842]
[1756983100054,0.64858,4430.3,4430.2,31.37]
[1756983100656,0.64858,4430.3,4430.2,30.88036]
[1756983100852,2.75973842,4430.3,4430.2,0.234]
[1756983101049,0.80652,4429.8,4429.7,3.4146]
[1756983101348,1.04892,4429.8,4429.7,3.938]
[1756983101551,1.04892,4429.8,4429.7,0.234]
[1756983101952,0.60332,4429.8,4429.7,0.9367]
[1756983102354,1.0155,4430.2,4429.7,0.9367]
[1756983102355,0.41,4430.4,4430.3,0.7059]
[1756983102662,0.61297,4430.4,4430.3,2.65075842]
[1756983103250,0.61297,4430.4,4430.3,0.9399]
[1756983103453,1.08597,4430.4,4430.3,0.7393]
[1756983104048,0.81617,4430.4,4430.3,0.7393]
[1756983104860,1.08597,4430.4,4430.3,0.5454]
[1756983105658,1.08597,4430.4,4430.3,0.7393]
[1756983107055,0.81617,4430.4,4430.3,0.9399]
[1756983108565,1.08597,4430.4,4430.3,0.9399]
[1756983111163,1.08597,4430.4,4430.3,1e-05]
[1756983112365,0.81617,4430.4,4430.3,0.39451]
[1756983113066,1.10147,4430.4,4430.3,0.70591]
[1756983113464,1.10147,4430.4,4430.3,0.19391]
[1756983113668,0.81617,4430.4,4430.3,1e-05]
[1756983119463,0.40625,4429.5,4429.4,0.3114]
[1756983119765,0.81625,4429.5,4429.4,0.9399]
[1756983119969,1.10155,4429.5,4429.4,0.9399]
[1756983121169,0.40625,4429.5,4429.4,0.9399]
[1756983121466,1.10155,4429.5,4429.4,0.9399]
[1756983124466,1.10155,4429.5,4429.1,0.233]
[1756983124467,0.81628,4429.2,4429.1,0.233]
[1756983124770,1.10158,4429.2,4429.1,0.233]
[1756983124972,0.5281,4429.0,4428.9,31.138]
[1756983125268,0.5281,4429.0,4427.0,0.40647]
[1756983125269,0.69172,4427.7,4427.6,3.6023]
[1756983125572,0.40642,4427.7,4427.6,5.54991627]
[1756983125965,1.01594,4428.3,4427.6,9.77576627]
[1756983126162,0.40636,4428.3,4428.2,1.71361627]
[1756983126367,0.40636,4428.3,4428.2,1.94761627]
[1756983127171,0.89846,4428.3,4428.2,0.234]
[1756983127671,0.89846,4428.3,4428.2,3.4418]
[1756983127968,0.89846,4428.3,4428.2,5.15541627]
[1756983128372,0.89846,4428.3,4428.2,3.4418]
[1756983128570,0.89846,4428.3,4428.2,5.15541627]
[1756983128770,0.2853,4429.3,4428.2,9.38123627]
[1756983128965,1.13745,4429.5,4428.8,3.2078]
[1756983129170,0.81335,4429.5,4429.4,1.71361627]
[1756983129366,0.81335,4429.5,4429.4,1.94761627]
[1756983129672,1.02015,4429.5,4429.4,1.94761627]
[1756983132265,1.02015,4429.5,4429.4,1.97401627]
[1756983133567,0.40625,4429.5,4429.4,1.98231627]
[1756983133773,0.70455,4429.5,4429.4,1.98231627]
[1756983134666,0.83175,4429.5,4429.4,1.98231627]
[1756983134974,1.04345,4429.5,4429.4,1.97401627]
[1756983135576,1.25425,4429.5,4429.4,1.97401627]
[1756983135782,1.25425,4429.5,4429.4,1.96081627]
[1756983136474,1.25425,4429.5,4429.4,1.97401627]
[1756983137969,1.04345,4429.5,4429.4,1.97401627]
[1756983138571,1.25425,4429.5,4429.4,1.97401627]
[1756983139674,1.25425,4429.5,4429.4,0.2604]
[1756983139869,1.12711,4428.9,4428.8,3.2282]
[1756983140072,1.12711,4428.9,4428.8,3.2078]
[1756983140273,1.12711,4428.9,4428.8,3.4408]
[1756983140871,1.12711,4428.9,4428.8,2.74359]
[1756983141079,0.40633,4428.7,4428.6,31.157]
[1756983141275,0.70463,4428.7,4428.6,31.391]
[1756983147781,0.70463,4428.7,4428.6,33.10461627]
[1756983149385,0.70463,4428.7,4428.6,33.11101627]
[1756983149586,0.70463,4428.7,4428.6,31.391]
[1756983152889,0.61807,4428.2,4428.1,3.218]
[1756983153185,2.84078627,4428.2,4428.1,0.2432]
[1756983153383,2.84078627,4428.2,4428.1,0.233]
[1756983155578,1.12721,4427.8,4427.7,0.0102]
[1756983155782,1.12721,4427.8,4427.7,0.233]
[1756983155984,0.2117,4427.4,4427.3,36.08441627]
[1756983156184,0.51,4427.4,4427.3,36.31741627]
[1756983156383,0.91644,4427.4,4427.3,36.31741627]
[1756983156890,0.91644,4427.4,4427.3,34.6038]
[1756983157190,0.91644,4427.4,4427.3,36.31741627]
[1756983157586,0.91644,4427.4,4427.3,34.6038]
[1756983158595,0.70474,4427.4,4427.3,34.6102]
[1756983158793,0.70474,4427.4,4427.3,36.32381627]
[1756983159596,0.70474,4427.4,4427.3,34.6102]
[1756983160094,0.70474,4427.4,4427.3,34.6038]
[1756983162996,0.70474,4427.4,4427.3,31.396]
[1756983166307,0.40644,4427.4,4427.3,0.2535]
[1756983167511,0.71704,4427.4,4427.3,0.2535]
[1756983170319,0.3106,4427.9,4427.4,0.0049]
[1756983170522,0.717,4427.9,4427.8,0.0205]
[1756983170714,0.717,4427.9,4427.8,0.2525]
[1756983171217,3.74139,4428.0,4427.9,0.0205]
[1756983171424,0.53359,4428.0,4427.9,0.0205]
[1756983171720,0.3106,4428.2,4427.9,0.0156]
[1756983171915,0.3106,4428.2,4428.1,1.96957264]
[1756983172126,0.3106,4428.2,4428.1,2.20647264]
[1756983172919,0.1272,4428.5,4428.1,2.20647264]
[1756983173220,0.95874,4428.5,4428.4,0.0156]
[1756983173417,0.95874,4428.5,4428.4,0.2398]
[1756983173617,0.4378,4428.5,4428.4,0.2525]
[1756983173926,0.3106,4428.7,4428.6,0.0205]
[1756983174318,0.3106,4428.7,4428.6,1.97447264]
[1756983175624,0.531,4428.7,4428.6,0.0156]
[1756983175824,0.7358,4428.7,4428.6,0.0156]
[1756983177325,0.7358,4428.7,4428.6,0.3272463]
[1756983177523,0.7358,4428.7,4428.6,0.3194463]
[1756983178930,1.14212,4428.7,4428.6,0.3194463]
[1756983180328,1.14212,4428.7,4428.6,0.31942373]
[1756983181130,1.14212,4428.7,4428.6,0.32722373]
[1756983181631,1.14212,4428.7,4428.6,0.31942373]
[1756983184030,1.14212,4428.7,4428.6,0.31936148]
[1756983184429,1.14212,4428.7,4428.6,0.31156148]
[1756983185235,1.14212,4428.7,4428.6,0.54356148]
[1756983187335,1.14212,4428.7,4428.6,0.54356447]
[1756983190832,1.14212,4428.7,4428.6,0.54362909]
[1756983198346,0.71702,4427.7,4427.6,34.6991]
[1756983198547,0.71702,4427.7,4427.6,34.9301]
[1756983200051,0.3106,4427.7,4427.6,34.9301]
[1756983200345,0.71702,4427.7,4427.6,34.9301]
[1756983200543,0.71702,4427.7,4427.6,34.6078]
[1756983201043,0.71702,4427.7,4427.6,34.9301]
[1756983202447,0.92702,4427.7,4427.6,4.1891]
[1756983203749,1.14282,4427.7,4427.6,4.1891]
[1756983203949,1.14282,4427.7,4427.6,3.6511]
[1756983205344,1.14282,4427.7,4427.6,0.4433]
[1756983205539,1.14282,4427.7,4427.6,0.231]
[1756983207253,1.14286,4427.2,4427.1,0.7503]
[1756983207453,1.14286,4427.2,4427.1,0.9813]
[1756983209250,1.14286,4427.2,4427.1,0.659]
[1756983209754,3.2078,4427.8,4427.1,0.659]
[1756983209950,1.14285,4427.4,4427.3,0.7503]
[1756983212256,1.14285,4427.4,4427.3,0.428]
[1756983212458,1.14285,4427.4,4427.3,0.2123]
[1756983213359,1.14285,4427.4,4427.3,0.5346]
[1756983213554,1.14285,4427.4,4427.3,0.7503]
[1756983215458,1.14285,4427.4,4427.3,0.428]
[1756983216353,1.14285,4427.4,4427.3,0.7503]
[1756983217352,0.92705,4427.4,4427.3,0.7503]
[1756983219660,1.14285,4427.4,4427.3,0.7503]
[1756983224462,1.14285,4427.4,4427.3,0.428]
[1756983225662,1.14285,4427.4,4427.3,0.7368]
[1756983227464,0.5206,4427.4,4427.3,0.7368]
[1756983227761,0.90304,4427.4,4427.3,0.7368]
[1756983228563,1.11134,4427.4,4427.3,0.7368]
[1756983228759,0.40646,4427.2,4427.1,0.4388]
[1756983228953,1.11136,4427.2,4427.1,0.4388]
[1756983229159,0.7049,4427.2,4427.1,0.9587]
[1756983229361,1.11136,4427.2,4427.1,0.9587]
[1756983230763,1.11136,4427.2,4427.1,0.231]
[1756983231366,1.11136,4427.2,4427.1,0.4388]
[1756983233970,1.11136,4427.2,4427.1,0.231]
[1756983234559,0.52938,4427.0,4426.9,3.2078]
[1756983234758,0.7049,4426.7,4426.6,0.94864875]
[1756983235068,0.7049,4426.7,4426.6,0.9587]
[1756983235069,1.11141,4426.7,4426.6,0.9587]
[1756983235265,0.4966,4426.7,4426.6,0.9587]
[1756983235568,0.70219,4427.0,4426.9,0.3088]
[1756983235766,0.70219,4427.0,4426.9,2.67284767]
[1756983236566,0.70219,4427.0,4426.9,0.9587]
[1756983236770,0.90309,4427.0,4426.9,2.67284767]
[1756983238165,1.23429,4427.0,4426.9,0.9587]
[1756983238767,2.94843767,4427.0,4426.9,0.6499]
[1756983239464,2.94843767,4427.0,4426.9,0.231]
[1756983240161,1.23429,4427.0,4426.9,0.231]
[1756983240358,2.94843767,4427.0,4426.9,0.231]
[1756983241065,3.17432767,4427.0,4426.9,0.231]
[1756983241872,2.94843767,4427.0,4426.9,0.231]
[1756983242968,0.40653,4426.4,4426.1,0.3088]
[1756983243167,0.70223,4426.4,4426.3,31.7048]
[1756983243370,0.70223,4426.4,4426.3,31.396]
[1756983244174,1.11143,4426.4,4426.3,0.4388]
[1756983244574,1.11143,4426.4,4426.3,0.7476]